[Event "Early-Titled-Tuesday-Blitz-March-05-2024"]
[Site "Chess.com"]
[Date "2024.03.05"]
[Round "7"]
[White "Hikaru"]
[Black "kleinebeer98"]
[Result "1-0"]
[WhiteElo "3273"]
[BlackElo "2897"]
[TimeControl "180+1"]
[EndTime "9:19:01 PST"]
[Termination "Hikaru won by checkmate"]

1. h3 {[%clk 0:03:00.9]} 1... d5 {[%clk 0:02:55.7]} 2. d4 {[%clk 0:02:58.4]}
2... Nf6 {[%clk 0:02:53.2]} 3. Nf3 {[%clk 0:02:55.2]} 3... c5 {[%clk 0:02:50.9]}
4. e3 {[%clk 0:02:53.8]} 4... cxd4 {[%clk 0:02:48.7]} 5. exd4 {[%clk 0:02:53.7]}
5... Bf5 {[%clk 0:02:48.2]} 6. c4 {[%clk 0:02:53.9]} 6... Nc6 {[%clk 0:02:42.2]}
7. Nc3 {[%clk 0:02:51.2]} 7... e6 {[%clk 0:02:39.9]} 8. c5 {[%clk 0:02:50.5]}
8... a6 {[%clk 0:02:27.6]} 9. a3 {[%clk 0:02:48.6]} 9... Be7 {[%clk 0:02:24.3]}
10. b4 {[%clk 0:02:48.9]} 10... O-O {[%clk 0:02:23.2]} 11. Bd3 {[%clk
0:02:45.8]} 11... Ne4 {[%clk 0:02:21.2]} 12. Bb2 {[%clk 0:02:46]} 12... Bf6
{[%clk 0:02:16.2]} 13. Ne2 {[%clk 0:02:45.6]} 13... a5 {[%clk 0:02:15.4]} 14. b5
{[%clk 0:02:38.3]} 14... Nb8 {[%clk 0:02:03.6]} 15. Rc1 {[%clk 0:02:24.3]} 15...
Nd7 {[%clk 0:01:56.5]} 16. Rc2 {[%clk 0:02:24.4]} 16... Qe7 {[%clk 0:01:40.6]}
17. O-O {[%clk 0:02:22.9]} 17... Rfc8 {[%clk 0:01:41.3]} 18. Re1 {[%clk
0:02:19]} 18... a4 {[%clk 0:01:39.6]} 19. Nc3 {[%clk 0:02:09.8]} 19... Nxc3
{[%clk 0:01:24]} 20. Bxc3 {[%clk 0:02:10.7]} 20... Bg6 {[%clk 0:01:15.5]} 21.
Bxg6 {[%clk 0:02:09.4]} 21... hxg6 {[%clk 0:01:16.4]} 22. Qd3 {[%clk 0:02:05.3]}
22... g5 {[%clk 0:01:01.9]} 23. Bd2 {[%clk 0:01:55.3]} 23... Qd8 {[%clk
0:00:39.4]} 24. Rec1 {[%clk 0:01:53.2]} 24... Nf8 {[%clk 0:00:33.8]} 25. Be3
{[%clk 0:01:52.5]} 25... Ng6 {[%clk 0:00:33.9]} 26. Qd2 {[%clk 0:01:52.5]} 26...
e5 {[%clk 0:00:32.2]} 27. dxe5 {[%clk 0:01:48.3]} 27... Bxe5 {[%clk 0:00:31.7]}
28. Bxg5 {[%clk 0:01:46]} 28... Qe8 {[%clk 0:00:30.9]} 29. c6 {[%clk 0:01:46.2]}
29... bxc6 {[%clk 0:00:30.2]} 30. bxc6 {[%clk 0:01:47.1]} 30... Bd6 {[%clk
0:00:28.8]} 31. Rc3 {[%clk 0:01:42.8]} 31... Ra6 {[%clk 0:00:27.4]} 32. Qxd5
{[%clk 0:01:41.6]} 32... Bf4 {[%clk 0:00:28.2]} 33. Re1 {[%clk 0:01:34.7]} 33...
Qf8 {[%clk 0:00:28.7]} 34. Bxf4 {[%clk 0:01:26.8]} 34... Nxf4 {[%clk 0:00:29.6]}
35. Qb5 {[%clk 0:01:26.5]} 35... Raa8 {[%clk 0:00:25]} 36. Nd4 {[%clk
0:01:24.8]} 36... Qd6 {[%clk 0:00:24]} 37. Nf5 {[%clk 0:01:19.4]} 37... Qd2
{[%clk 0:00:24.7]} 38. Rce3 {[%clk 0:01:16.7]} 38... Rc7 {[%clk 0:00:15.4]} 39.
Ne7+ {[%clk 0:01:09.8]} 39... Kf8 {[%clk 0:00:15.4]} 40. Qf5 {[%clk 0:00:56.8]}
40... Qd6 {[%clk 0:00:09.3]} 41. Qh7 {[%clk 0:00:52.3]} 41... Qh6 {[%clk
0:00:10.1]} 42. Qg8# {[%clk 0:00:50.6]} 1-0

[Event "Early-Titled-Tuesday-Blitz-March-05-2024"]
[Site "Chess.com"]
[Date "2024.03.05"]
[Round "7"]
[White "Austen48"]
[Black "Semetey"]
[Result "1-0"]
[WhiteElo "2322"]
[BlackElo "2586"]
[TimeControl "180+1"]
[EndTime "9:19:01 PST"]
[Termination "Austen48 won on time"]

1. d4 {[%clk 0:03:00.9]} 1... d5 {[%clk 0:02:56.5]} 2. c4 {[%clk 0:02:59.8]}
2... e6 {[%clk 0:02:56.8]} 3. Nc3 {[%clk 0:02:58.7]} 3... Nf6 {[%clk 0:02:57]}
4. cxd5 {[%clk 0:02:58.2]} 4... exd5 {[%clk 0:02:57.9]} 5. Bg5 {[%clk
0:02:57.4]} 5... Nbd7 {[%clk 0:02:57.6]} 6. e3 {[%clk 0:02:54.7]} 6... Be7
{[%clk 0:02:56.1]} 7. Qc2 {[%clk 0:02:53.9]} 7... c6 {[%clk 0:02:54.7]} 8. Bd3
{[%clk 0:02:53.5]} 8... h6 {[%clk 0:02:53.7]} 9. Bh4 {[%clk 0:02:50.1]} 9... Nh5
{[%clk 0:02:53.9]} 10. Bxe7 {[%clk 0:02:45.3]} 10... Qxe7 {[%clk 0:02:54.8]} 11.
Nge2 {[%clk 0:02:43.7]} 11... Nb6 {[%clk 0:02:54.7]} 12. h3 {[%clk 0:02:38.6]}
12... Nf6 {[%clk 0:02:53.8]} 13. O-O-O {[%clk 0:02:29]} 13... Be6 {[%clk
0:02:48.4]} 14. g4 {[%clk 0:02:26.4]} 14... O-O-O {[%clk 0:02:48.4]} 15. Kb1
{[%clk 0:02:23.7]} 15... Kb8 {[%clk 0:02:48.6]} 16. Na4 {[%clk 0:02:17.3]} 16...
Nxa4 {[%clk 0:02:47.7]} 17. Qxa4 {[%clk 0:02:16.6]} 17... Ne8 {[%clk 0:02:44.4]}
18. Nc1 {[%clk 0:02:09.9]} 18... Nd6 {[%clk 0:02:43.7]} 19. Nb3 {[%clk
0:02:09.3]} 19... f5 {[%clk 0:02:30]} 20. f3 {[%clk 0:01:48.6]} 20... Bc8 {[%clk
0:02:27.6]} 21. Rhe1 {[%clk 0:01:44.6]} 21... Rhf8 {[%clk 0:02:27.3]} 22. e4
{[%clk 0:01:26.5]} 22... fxe4 {[%clk 0:02:22.8]} 23. fxe4 {[%clk 0:01:25]} 23...
dxe4 {[%clk 0:02:23]} 24. Nc5 {[%clk 0:01:24.3]} 24... Rf4 {[%clk 0:02:21.9]}
25. Qb4 {[%clk 0:01:14.1]} 25... Re8 {[%clk 0:02:20.4]} 26. Re3 {[%clk
0:00:49.6]} 26... Qf8 {[%clk 0:02:11.4]} 27. Be2 {[%clk 0:00:46.8]} 27... Ka8
{[%clk 0:02:08.5]} 28. Ra3 {[%clk 0:00:43.1]} 28... Be6 {[%clk 0:01:12.4]} 29.
Qb6 {[%clk 0:00:37.9]} 1-0

[Event "Early-Titled-Tuesday-Blitz-March-05-2024"]
[Site "Chess.com"]
[Date "2024.03.05"]
[Round "7"]
[White "Kotofeyca"]
[Black "Kislov_Oleg"]
[Result "0-1"]
[WhiteElo "2448"]
[BlackElo "2574"]
[TimeControl "180+1"]
[EndTime "9:19:02 PST"]
[Termination "Kislov_Oleg won by checkmate"]

1. d4 {[%clk 0:03:00.9]} 1... Nf6 {[%clk 0:02:58.8]} 2. c4 {[%clk 0:03:00.2]}
2... e6 {[%clk 0:02:57.8]} 3. Nf3 {[%clk 0:03:00]} 3... d5 {[%clk 0:02:45.8]} 4.
cxd5 {[%clk 0:02:57.5]} 4... exd5 {[%clk 0:02:45.4]} 5. Nc3 {[%clk 0:02:57.7]}
5... c6 {[%clk 0:02:42.1]} 6. Bg5 {[%clk 0:02:57.5]} 6... Be7 {[%clk 0:02:40]}
7. Qc2 {[%clk 0:02:57.2]} 7... O-O {[%clk 0:02:37.5]} 8. e3 {[%clk 0:02:57.2]}
8... Re8 {[%clk 0:02:37.8]} 9. Bd3 {[%clk 0:02:56.9]} 9... h6 {[%clk 0:02:36.5]}
10. Bh4 {[%clk 0:02:56.8]} 10... Ne4 {[%clk 0:02:35.8]} 11. Bxe4 {[%clk
0:02:50.9]} 11... Bxh4 {[%clk 0:02:31.2]} 12. Bh7+ {[%clk 0:02:50.1]} 12... Kh8
{[%clk 0:02:25.1]} 13. O-O {[%clk 0:02:50.3]} 13... Bf6 {[%clk 0:02:19.3]} 14.
Bf5 {[%clk 0:02:49.9]} 14... Bxf5 {[%clk 0:02:16.9]} 15. Qxf5 {[%clk 0:02:50.8]}
15... Qd7 {[%clk 0:02:16.8]} 16. Qd3 {[%clk 0:02:43.3]} 16... Na6 {[%clk
0:02:14.2]} 17. Rab1 {[%clk 0:02:39.2]} 17... Nc7 {[%clk 0:02:11.3]} 18. b4
{[%clk 0:02:39.3]} 18... a6 {[%clk 0:02:10.1]} 19. a4 {[%clk 0:02:39.1]} 19...
Qd6 {[%clk 0:01:55.8]} 20. b5 {[%clk 0:02:30.4]} 20... axb5 {[%clk 0:01:54.4]}
21. axb5 {[%clk 0:02:30.8]} 21... c5 {[%clk 0:01:54.1]} 22. dxc5 {[%clk
0:02:24.7]} 22... Qxc5 {[%clk 0:01:54.1]} 23. Rfc1 {[%clk 0:02:23.8]} 23... Ra3
{[%clk 0:01:52.7]} 24. Nd4 {[%clk 0:01:52.1]} 24... Ne6 {[%clk 0:01:51.8]} 25.
Qd2 {[%clk 0:00:34.7]} 25... Bxd4 {[%clk 0:01:26.5]} 26. Nd1 {[%clk 0:00:18.9]}
26... Qb6 {[%clk 0:01:21.3]} 27. exd4 {[%clk 0:00:19]} 27... Qxd4 {[%clk
0:01:15.7]} 28. Qxd4 {[%clk 0:00:19.2]} 28... Nxd4 {[%clk 0:01:16.6]} 29. Kf1
{[%clk 0:00:13.6]} 29... Ne6 {[%clk 0:01:09.9]} 30. Ne3 {[%clk 0:00:12.5]} 30...
d4 {[%clk 0:01:09.1]} 31. Nc4 {[%clk 0:00:13]} 31... Ra2 {[%clk 0:01:07.3]} 32.
Nd6 {[%clk 0:00:13]} 32... Re7 {[%clk 0:01:00.5]} 33. Rc8+ {[%clk 0:00:12.9]}
33... Kh7 {[%clk 0:01:00.6]} 34. Rb8 {[%clk 0:00:12.5]} 34... Nf4 {[%clk
0:00:56.3]} 35. Rxb7 {[%clk 0:00:11.2]} 35... Ree2 {[%clk 0:00:56.1]} 36. Kg1
{[%clk 0:00:04.9]} 36... Rxf2 {[%clk 0:00:54.5]} 37. Rxf7 {[%clk 0:00:03.8]}
37... Rxg2+ {[%clk 0:00:53.9]} 38. Kf1 {[%clk 0:00:04.3]} 38... Raf2+ {[%clk
0:00:52.7]} 39. Ke1 {[%clk 0:00:04.6]} 39... Nd3+ {[%clk 0:00:53.4]} 40. Kd1
{[%clk 0:00:04.9]} 40... Rd2# {[%clk 0:00:54.3]} 0-1

[Event "Early-Titled-Tuesday-Blitz-March-05-2024"]
[Site "Chess.com"]
[Date "2024.03.05"]
[Round "7"]
[White "ActorXu"]
[Black "YurasovMat-2012"]
[Result "1-0"]
[WhiteElo "2853"]
[BlackElo "2617"]
[TimeControl "180+1"]
[EndTime "9:19:04 PST"]
[Termination "ActorXu won by resignation"]

1. e4 {[%clk 0:03:00.9]} 1... e5 {[%clk 0:02:59.1]} 2. Nf3 {[%clk 0:03:00.7]}
2... Nf6 {[%clk 0:02:58.6]} 3. d4 {[%clk 0:02:59.7]} 3... Nxe4 {[%clk
0:02:58.3]} 4. dxe5 {[%clk 0:02:59.8]} 4... d5 {[%clk 0:02:57.9]} 5. Nbd2 {[%clk
0:02:59.2]} 5... Nxd2 {[%clk 0:02:56.2]} 6. Bxd2 {[%clk 0:02:57.2]} 6... c6
{[%clk 0:02:56.1]} 7. Bd3 {[%clk 0:02:55.4]} 7... Be7 {[%clk 0:02:53.9]} 8. O-O
{[%clk 0:02:51.5]} 8... O-O {[%clk 0:02:53.5]} 9. h3 {[%clk 0:02:46.5]} 9... Be6
{[%clk 0:02:52.8]} 10. Nd4 {[%clk 0:02:42.9]} 10... Bd7 {[%clk 0:02:40.3]} 11.
Qh5 {[%clk 0:02:40.1]} 11... g6 {[%clk 0:02:38.7]} 12. Qh6 {[%clk 0:02:40.3]}
12... c5 {[%clk 0:02:33.5]} 13. Nf3 {[%clk 0:02:39.3]} 13... f6 {[%clk
0:02:20.4]} 14. Rae1 {[%clk 0:02:17.5]} 14... Nc6 {[%clk 0:02:16.8]} 15. exf6
{[%clk 0:01:44.8]} 15... Bxf6 {[%clk 0:02:02]} 16. Ng5 {[%clk 0:01:44.5]} 16...
Bxg5 {[%clk 0:01:45.6]} 17. Bxg5 {[%clk 0:01:44.4]} 17... Qc8 {[%clk 0:01:43.2]}
18. Bxg6 {[%clk 0:01:44.1]} 18... hxg6 {[%clk 0:01:43]} 19. Qxg6+ {[%clk
0:01:44.2]} 19... Kh8 {[%clk 0:01:43]} 20. Re3 {[%clk 0:01:14]} 20... Bf5 {[%clk
0:01:32.5]} 21. Bf6+ {[%clk 0:01:08.7]} 21... Rxf6 {[%clk 0:01:31.2]} 22. Qxf6+
{[%clk 0:01:09.3]} 22... Kh7 {[%clk 0:01:29.7]} 23. Rg3 {[%clk 0:01:08.2]} 23...
Qf8 {[%clk 0:01:27]} 24. Qg5 {[%clk 0:00:57.7]} 24... Nd4 {[%clk 0:01:11.2]} 25.
Re1 {[%clk 0:00:54.7]} 25... Be4 {[%clk 0:01:02]} 26. Rg4 {[%clk 0:00:18.1]}
26... Nf5 {[%clk 0:01:00.7]} 27. Rf4 {[%clk 0:00:13.4]} 27... Re8 {[%clk
0:00:34.6]} 28. Rxf5 {[%clk 0:00:06.7]} 28... Bxf5 {[%clk 0:00:30.7]} 29. Qh5+
{[%clk 0:00:07]} 1-0

[Event "Early-Titled-Tuesday-Blitz-March-05-2024"]
[Site "Chess.com"]
[Date "2024.03.05"]
[Round "7"]
[White "kinga2008"]
[Black "Bekkedahl"]
[Result "1-0"]
[WhiteElo "2412"]
[BlackElo "2198"]
[TimeControl "180+1"]
[EndTime "9:19:07 PST"]
[Termination "kinga2008 won by resignation"]

1. e4 {[%clk 0:02:54.5]} 1... c5 {[%clk 0:03:00.5]} 2. Nf3 {[%clk 0:02:52.7]}
2... g6 {[%clk 0:03:01.2]} 3. c3 {[%clk 0:02:51.9]} 3... Bg7 {[%clk 0:02:59.1]}
4. d4 {[%clk 0:02:51.8]} 4... cxd4 {[%clk 0:02:59.8]} 5. cxd4 {[%clk 0:02:52.7]}
5... d5 {[%clk 0:03:00.3]} 6. exd5 {[%clk 0:02:52.5]} 6... Nf6 {[%clk
0:02:58.5]} 7. Nc3 {[%clk 0:02:53.3]} 7... O-O {[%clk 0:02:54.4]} 8. Bd3 {[%clk
0:02:53.3]} 8... Nxd5 {[%clk 0:02:54]} 9. O-O {[%clk 0:02:52.6]} 9... Nc6 {[%clk
0:02:53.4]} 10. Be4 {[%clk 0:02:51.8]} 10... Nf6 {[%clk 0:02:29.9]} 11. Bc2
{[%clk 0:02:45.1]} 11... Bg4 {[%clk 0:02:29.8]} 12. Be3 {[%clk 0:02:42.1]} 12...
Nd5 {[%clk 0:02:21.5]} 13. Be4 {[%clk 0:02:27.4]} 13... e6 {[%clk 0:02:14.8]}
14. h3 {[%clk 0:02:21.9]} 14... Bxf3 {[%clk 0:02:08.3]} 15. Bxf3 {[%clk
0:02:20.6]} 15... Nxe3 {[%clk 0:02:03.6]} 16. fxe3 {[%clk 0:02:20.4]} 16... Qb6
{[%clk 0:02:01.2]} 17. Na4 {[%clk 0:02:08.3]} 17... Qa5 {[%clk 0:01:56.8]} 18.
Qb3 {[%clk 0:02:00.2]} 18... Rab8 {[%clk 0:01:49.5]} 19. Rad1 {[%clk 0:01:30.4]}
19... Rfd8 {[%clk 0:01:44.5]} 20. Bg4 {[%clk 0:01:14.5]} 20... Nb4 {[%clk
0:01:37.2]} 21. Rxf7 {[%clk 0:01:06.2]} 21... Qd5 {[%clk 0:00:14.5]} 22. Rxg7+
{[%clk 0:00:47.5]} 22... Kxg7 {[%clk 0:00:13.7]} 23. Qxb4 {[%clk 0:00:48.4]}
23... Rd7 {[%clk 0:00:12]} 24. Nc5 {[%clk 0:00:43]} 24... Re7 {[%clk 0:00:11.2]}
25. Bf3 {[%clk 0:00:35.7]} 25... Qg5 {[%clk 0:00:09]} 26. Ne4 {[%clk 0:00:34]}
26... Qxe3+ {[%clk 0:00:08.6]} 27. Kh2 {[%clk 0:00:33.1]} 27... Rf7 {[%clk
0:00:08.7]} 28. Qd6 {[%clk 0:00:27.4]} 28... Qf4+ {[%clk 0:00:05.7]} 29. Qxf4
{[%clk 0:00:28]} 29... Rxf4 {[%clk 0:00:06.6]} 30. Nc5 {[%clk 0:00:28.9]} 30...
Kf6 {[%clk 0:00:05.3]} 31. Nd7+ {[%clk 0:00:28.3]} 1-0

[Event "Early-Titled-Tuesday-Blitz-March-05-2024"]
[Site "Chess.com"]
[Date "2024.03.05"]
[Round "7"]
[White "viniciusrego"]
[Black "Harry_Rakkel"]
[Result "1-0"]
[WhiteElo "2413"]
[BlackElo "2680"]
[TimeControl "180+1"]
[EndTime "9:19:09 PST"]
[Termination "viniciusrego won on time"]

1. e4 {[%clk 0:03:00.9]} 1... c5 {[%clk 0:02:58.5]} 2. Nc3 {[%clk 0:03:00.9]}
2... Nc6 {[%clk 0:02:56.2]} 3. Nge2 {[%clk 0:03:00]} 3... e6 {[%clk 0:02:54.9]}
4. g3 {[%clk 0:02:58.9]} 4... a6 {[%clk 0:02:53.8]} 5. a4 {[%clk 0:02:57.5]}
5... b6 {[%clk 0:02:51.6]} 6. Bg2 {[%clk 0:02:57.6]} 6... Bb7 {[%clk 0:02:51.3]}
7. d4 {[%clk 0:02:55.7]} 7... cxd4 {[%clk 0:02:50.6]} 8. Nxd4 {[%clk 0:02:56.6]}
8... Nf6 {[%clk 0:02:43.1]} 9. O-O {[%clk 0:02:55]} 9... Qc7 {[%clk 0:02:15.2]}
10. Re1 {[%clk 0:02:52.1]} 10... Be7 {[%clk 0:02:11.3]} 11. Bf4 {[%clk
0:02:33.2]} 11... Ne5 {[%clk 0:01:54.1]} 12. Nd5 {[%clk 0:02:16.8]} 12... exd5
{[%clk 0:01:53]} 13. exd5 {[%clk 0:02:17.7]} 13... d6 {[%clk 0:01:52.4]} 14. Nf5
{[%clk 0:02:09.1]} 14... Nfd7 {[%clk 0:01:32.9]} 15. Nxg7+ {[%clk 0:02:07.3]}
15... Kd8 {[%clk 0:01:32.9]} 16. Nf5 {[%clk 0:02:00.8]} 16... Bf6 {[%clk
0:01:31.8]} 17. Nd4 {[%clk 0:01:51.4]} 17... h5 {[%clk 0:01:26.2]} 18. h4 {[%clk
0:01:51]} 18... Qc5 {[%clk 0:01:17.2]} 19. c3 {[%clk 0:01:45.1]} 19... Qc4
{[%clk 0:00:56.9]} 20. Nc6+ {[%clk 0:01:38.8]} 20... Kc7 {[%clk 0:00:55.1]} 21.
Nxe5 {[%clk 0:01:22]} 21... Bxe5 {[%clk 0:00:48.5]} 22. b3 {[%clk 0:01:19.2]}
22... Qxf4 {[%clk 0:00:24.1]} 23. gxf4 {[%clk 0:01:17.9]} 23... Bxf4 {[%clk
0:00:25]} 24. Re7 {[%clk 0:01:15]} 24... Rag8 {[%clk 0:00:22.8]} 25. Qf3 {[%clk
0:01:11.8]} 25... Rg4 {[%clk 0:00:17.9]} 26. Kf1 {[%clk 0:01:05]} 26... Bc8
{[%clk 0:00:12.6]} 27. Bh3 {[%clk 0:00:57]} 27... Rxh4 {[%clk 0:00:12.8]} 28.
Rxf7 {[%clk 0:00:56.8]} 28... Be5 {[%clk 0:00:09.7]} 29. Re1 {[%clk 0:00:45.5]}
29... Rd8 {[%clk 0:00:08.8]} 30. Re4 {[%clk 0:00:44.3]} 30... Rxe4 {[%clk
0:00:08.3]} 31. Qxe4 {[%clk 0:00:45.2]} 31... a5 {[%clk 0:00:07.9]} 32. Qc4+
{[%clk 0:00:43.8]} 32... Kb8 {[%clk 0:00:07.9]} 33. Qc6 {[%clk 0:00:40.4]} 33...
Bb7 {[%clk 0:00:01.9]} 34. Rxd7 {[%clk 0:00:36.4]} 1-0

[Event "Early-Titled-Tuesday-Blitz-March-05-2024"]
[Site "Chess.com"]
[Date "2024.03.05"]
[Round "7"]
[White "Elsa167"]
[Black "AttackSparrow"]
[Result "1-0"]
[WhiteElo "2917"]
[BlackElo "2644"]
[TimeControl "180+1"]
[EndTime "9:19:10 PST"]
[Termination "Elsa167 won by resignation"]

1. f4 {[%clk 0:03:00.2]} 1... d5 {[%clk 0:02:57.6]} 2. Nf3 {[%clk 0:03:00.4]}
2... Nf6 {[%clk 0:02:58.2]} 3. g3 {[%clk 0:03:00.9]} 3... Bf5 {[%clk 0:02:58.3]}
4. Bg2 {[%clk 0:03:01.2]} 4... e6 {[%clk 0:02:59]} 5. O-O {[%clk 0:03:01.3]}
5... h6 {[%clk 0:02:59.6]} 6. d3 {[%clk 0:03:01.8]} 6... Nc6 {[%clk 0:02:52.6]}
7. Qe1 {[%clk 0:03:00.6]} 7... Bc5+ {[%clk 0:02:50.8]} 8. Kh1 {[%clk 0:02:58.9]}
8... Qe7 {[%clk 0:02:42.2]} 9. a3 {[%clk 0:02:36]} 9... Bb6 {[%clk 0:02:37.9]}
10. Nc3 {[%clk 0:02:29]} 10... d4 {[%clk 0:02:08.4]} 11. Na4 {[%clk 0:02:28.2]}
11... Nd5 {[%clk 0:02:00.2]} 12. Nxb6 {[%clk 0:02:19.5]} 12... axb6 {[%clk
0:02:01.1]} 13. c3 {[%clk 0:02:03]} 13... dxc3 {[%clk 0:01:15.7]} 14. e4 {[%clk
0:02:02.7]} 14... Ndb4 {[%clk 0:01:15.7]} 15. Qxc3 {[%clk 0:02:02.1]} 15... Bh7
{[%clk 0:01:01.2]} 16. Be3 {[%clk 0:01:54.1]} 16... Na6 {[%clk 0:00:51.1]} 17.
b4 {[%clk 0:01:54.1]} 17... b5 {[%clk 0:00:45.7]} 18. Qxg7 {[%clk 0:01:53.3]}
18... O-O-O {[%clk 0:00:44.2]} 19. a4 {[%clk 0:01:48.4]} 19... Naxb4 {[%clk
0:00:39.5]} 20. axb5 {[%clk 0:01:47.2]} 20... Nb8 {[%clk 0:00:40.1]} 21. Ra8
{[%clk 0:01:33.6]} 21... b6 {[%clk 0:00:34.3]} 22. Rfa1 {[%clk 0:01:15.4]} 22...
Nc2 {[%clk 0:00:27.5]} 23. Ne5 {[%clk 0:00:48.9]} 23... Nxa1 {[%clk 0:00:10.5]}
24. Rxb8+ {[%clk 0:00:41.1]} 24... Kxb8 {[%clk 0:00:08.6]} 25. Nc6+ {[%clk
0:00:42]} 25... Kb7 {[%clk 0:00:08.6]} 26. Nxe7 {[%clk 0:00:41.8]} 26... Nb3
{[%clk 0:00:06.9]} 27. Qc3 {[%clk 0:00:29.8]} 27... Na5 {[%clk 0:00:05.9]} 28.
e5+ {[%clk 0:00:25.5]} 28... Kb8 {[%clk 0:00:06.2]} 29. Nc6+ {[%clk 0:00:25.8]}
29... Nxc6 {[%clk 0:00:06.9]} 30. Qxc6 {[%clk 0:00:25.2]} 30... Kc8 {[%clk
0:00:07.6]} 31. Bxb6 {[%clk 0:00:23.1]} 1-0

[Event "Early-Titled-Tuesday-Blitz-March-05-2024"]
[Site "Chess.com"]
[Date "2024.03.05"]
[Round "7"]
[White "Bulatova_Kamaliya"]
[Black "Kielinkei"]
[Result "0-1"]
[WhiteElo "2453"]
[BlackElo "2591"]
[TimeControl "180+1"]
[EndTime "9:19:10 PST"]
[Termination "Kielinkei won by resignation"]

1. e4 {[%clk 0:03:00.9]} 1... c5 {[%clk 0:03:00.2]} 2. c3 {[%clk 0:03:00.3]}
2... d5 {[%clk 0:02:59.5]} 3. exd5 {[%clk 0:02:59.8]} 3... Qxd5 {[%clk
0:03:00.4]} 4. Nf3 {[%clk 0:02:53.9]} 4... Nf6 {[%clk 0:03:00.5]} 5. Na3 {[%clk
0:02:53]} 5... Nc6 {[%clk 0:02:54.9]} 6. Bc4 {[%clk 0:02:51.2]} 6... Qd8 {[%clk
0:02:52.7]} 7. O-O {[%clk 0:02:44.4]} 7... e6 {[%clk 0:02:51.6]} 8. d4 {[%clk
0:02:32.4]} 8... cxd4 {[%clk 0:02:44.6]} 9. cxd4 {[%clk 0:02:30.8]} 9... Be7
{[%clk 0:02:39.1]} 10. Nb5 {[%clk 0:02:28.7]} 10... a6 {[%clk 0:02:35.2]} 11.
Nc3 {[%clk 0:02:27.4]} 11... O-O {[%clk 0:02:34.5]} 12. a3 {[%clk 0:02:13.4]}
12... b5 {[%clk 0:02:30.3]} 13. Ba2 {[%clk 0:02:09.4]} 13... Bb7 {[%clk
0:02:27]} 14. d5 {[%clk 0:02:04]} 14... exd5 {[%clk 0:02:26.5]} 15. Nxd5 {[%clk
0:02:03.6]} 15... Nxd5 {[%clk 0:02:26.7]} 16. Bxd5 {[%clk 0:01:57.7]} 16... Na5
{[%clk 0:02:21.7]} 17. Bxb7 {[%clk 0:01:55.8]} 17... Nxb7 {[%clk 0:02:22.6]} 18.
Bf4 {[%clk 0:01:44.6]} 18... Bf6 {[%clk 0:02:19.2]} 19. Rb1 {[%clk 0:01:28.7]}
19... Qxd1 {[%clk 0:02:10]} 20. Rfxd1 {[%clk 0:01:29.1]} 20... Rfd8 {[%clk
0:02:10.3]} 21. b3 {[%clk 0:01:21.2]} 21... Nc5 {[%clk 0:02:06]} 22. Bd6 {[%clk
0:00:54.6]} 22... Ne4 {[%clk 0:02:01.6]} 23. Bb4 {[%clk 0:00:52.8]} 23... Bc3
{[%clk 0:01:32]} 24. h3 {[%clk 0:00:31.4]} 24... a5 {[%clk 0:01:26.8]} 25. Be7
{[%clk 0:00:27.3]} 25... Rxd1+ {[%clk 0:01:03.4]} 26. Rxd1 {[%clk 0:00:28.2]}
26... b4 {[%clk 0:00:57.6]} 27. a4 {[%clk 0:00:26.9]} 27... h6 {[%clk
0:00:52.1]} 28. Rd8+ {[%clk 0:00:20.1]} 28... Rxd8 {[%clk 0:00:52]} 29. Bxd8
{[%clk 0:00:21]} 29... Nc5 {[%clk 0:00:48.1]} 30. Bxa5 {[%clk 0:00:20.5]} 30...
Nxb3 {[%clk 0:00:48.7]} 31. Bc7 {[%clk 0:00:18.9]} 31... Nc5 {[%clk 0:00:45.3]}
32. a5 {[%clk 0:00:12.6]} 32... b3 {[%clk 0:00:44.7]} 33. a6 {[%clk 0:00:09.5]}
33... b2 {[%clk 0:00:44]} 34. a7 {[%clk 0:00:07.7]} 34... b1=Q+ {[%clk
0:00:44.3]} 35. Kh2 {[%clk 0:00:07.9]} 35... Qb7 {[%clk 0:00:44.9]} 36. Bb8
{[%clk 0:00:07.1]} 36... Nd7 {[%clk 0:00:44.3]} 0-1

[Event "Early-Titled-Tuesday-Blitz-March-05-2024"]
[Site "Chess.com"]
[Date "2024.03.05"]
[Round "7"]
[White "N4700000"]
[Black "klercaku"]
[Result "1-0"]
[WhiteElo "2502"]
[BlackElo "2200"]
[TimeControl "180+1"]
[EndTime "9:19:11 PST"]
[Termination "N4700000 won by checkmate"]

1. e4 {[%clk 0:03:00.9]} 1... e5 {[%clk 0:02:59.5]} 2. Bc4 {[%clk 0:02:59.8]}
2... Nc6 {[%clk 0:02:59.6]} 3. Nc3 {[%clk 0:02:58.9]} 3... Nf6 {[%clk
0:03:00.2]} 4. d3 {[%clk 0:02:58.6]} 4... d6 {[%clk 0:03:00.6]} 5. f4 {[%clk
0:02:55.1]} 5... exf4 {[%clk 0:02:59.3]} 6. Bxf4 {[%clk 0:02:54.4]} 6... Be7
{[%clk 0:02:59.8]} 7. Nf3 {[%clk 0:02:53.6]} 7... O-O {[%clk 0:02:57.3]} 8. O-O
{[%clk 0:02:51.3]} 8... Na5 {[%clk 0:02:42.8]} 9. Bb3 {[%clk 0:02:42.4]} 9...
Nxb3 {[%clk 0:02:41.8]} 10. axb3 {[%clk 0:02:43.3]} 10... h6 {[%clk 0:02:32.9]}
11. Qd2 {[%clk 0:02:41]} 11... Be6 {[%clk 0:02:21.4]} 12. d4 {[%clk 0:02:36.1]}
12... d5 {[%clk 0:02:17.5]} 13. e5 {[%clk 0:02:33.8]} 13... Ne4 {[%clk
0:02:16.8]} 14. Qe3 {[%clk 0:02:14.3]} 14... Bf5 {[%clk 0:01:55.9]} 15. Nd2
{[%clk 0:01:57.1]} 15... Ng5 {[%clk 0:01:46]} 16. Rac1 {[%clk 0:01:27.6]} 16...
Ne6 {[%clk 0:01:40.3]} 17. Bxh6 {[%clk 0:01:21.6]} 17... gxh6 {[%clk 0:01:40]}
18. Rxf5 {[%clk 0:01:20.8]} 18... Bg5 {[%clk 0:01:39.4]} 19. Qf2 {[%clk
0:01:15.8]} 19... f6 {[%clk 0:01:00.4]} 20. Rf1 {[%clk 0:01:08.5]} 20... fxe5
{[%clk 0:00:56.2]} 21. dxe5 {[%clk 0:01:07.7]} 21... Rxf5 {[%clk 0:00:25.4]} 22.
Qxf5 {[%clk 0:01:08.6]} 22... Ng7 {[%clk 0:00:26]} 23. Qf7+ {[%clk 0:01:02.6]}
23... Kh8 {[%clk 0:00:25]} 24. Nf3 {[%clk 0:01:02]} 24... Be3+ {[%clk
0:00:20.9]} 25. Kh1 {[%clk 0:01:02.3]} 25... d4 {[%clk 0:00:21.1]} 26. Ne4
{[%clk 0:01:01.1]} 26... Qf8 {[%clk 0:00:18.5]} 27. Nh4 {[%clk 0:00:30.1]} 27...
Qxf7 {[%clk 0:00:11.2]} 28. Rxf7 {[%clk 0:00:31]} 28... Kg8 {[%clk 0:00:05.7]}
29. Rxc7 {[%clk 0:00:30]} 29... Rf8 {[%clk 0:00:02.9]} 30. Nf6+ {[%clk
0:00:29.1]} 30... Kh8 {[%clk 0:00:02.4]} 31. Ng6# {[%clk 0:00:28.5]} 1-0